[Event "Wuerttemberg Rapid Teams 2024"]
[Site "B?blingen, Germany"]
[Date "2024.04.13"]
[Round "7.26"]
[White "Hofer, Markus"]
[Black "Bodriyenko, Markiyan"]
[Result "1-0"]
[ECO "A80"]
[WhiteElo "2047"]
[BlackElo "1728"]
[Annotator "NA RC"]
[PlyCount "85"]
[EventDate "2024.04.13"]
[EventType "team-tourn"]
[SourceTitle "playchess.com"]
[Source "ChessBase"]
[SourceQuality "1"]
[TimeControl "900+5"]

1. d4 {[%emt 0:00:01]} f5 {[%emt 0:00:01]} 2. Nf3 {[%emt 0:00:06]} Nf6 {[%emt 0:00:02]} 3. c4 {[%emt 0:00:05]} g6 {[%emt 0:00:01]} 4. b3 {[%emt 0:00:06]} Bg7 {[%emt 0:00:01]} 5. Bb2 {[%emt 0:00:00]} d6 {[%emt 0:00:09]} 6. e3 {[%emt 0:00:12]} O-O {[%emt 0:00:07]} 7. Bd3 {[%emt 0:00:02]} Qe8 {[%emt 0:00:17]} 8. Nbd2 {[%emt 0:00:02]} Nbd7 {[%emt 0:00:04]} 9. O-O {[%emt 0:01:33]} e5 {[%emt 0:00:41]} 10. dxe5 {[%emt 0:00:10]} dxe5 {[%emt 0:00:01]} 11. e4 {[%emt 0:00:39]} f4 {[%emt 0:00:18]} 12. b4 {[%emt 0:00:21]} Nh5 {[%emt 0:00:45]} 13. c5 {[%emt 0:00:26]} c6 {[%emt 0:00:55]} 14. Nc4 {[%emt 0:00:10]} b6 {[%emt 0:00:19]} 15. Qb3 {[%emt 0:02:34]} Kh8 {[%emt 0:00:40]} 16. cxb6 {[%emt 0:00:36]} axb6 {[%emt 0:00:20]} 17. Rfd1 {[%emt 0:00:39]} Qe7 {[%emt 0:00:54]} 18. h4 {[%emt 0:02:36]} h6 {[%emt 0:00:20]} 19. Be2 {[%emt 0:00:05]} Kh7 {[%emt 0:00:38]} 20. Rac1 {[%emt 0:00:47]} Ba6 {[%emt 0:01:37]} 21. a4 {[%emt 0:00:09]} Bxc4 {[%emt 0:00:08]} 22. Bxc4 {[%emt 0:00:26]} Rad8 {[%emt 0:01:32]} 23. Be6 {[%emt 0:00:38]} Nhf6 {[%emt 0:00:20]} 24. Rxc6 {[%emt 0:00:24]} Nxe4 {[%emt 0:02:06]} 25. Rc7 {[%emt 0:01:05]} Nef6 {[%emt 0:00:19]} 26. Nxe5 {[%emt 0:00:17]} Nc5 {[%emt 0:02:17]} 27. Rxe7 {[%emt 0:00:35]} Nxb3 {[%emt 0:00:03]} 28. Rxd8 {[%emt 0:00:20]} Rxd8 {[%emt 0:00:14]} 29. Bxb3 {[%emt 0:00:04]} Rd6 {[%emt 0:00:43]} 30. Ng4 {[%emt 0:00:28]} Nh5 {[%emt 0:00:22]} 31. Bxg7 {[%emt 0:00:07]} Nxg7 {[%emt 0:00:02]} 32. Ne5 {[%emt 0:00:33]} h5 {[%emt 0:00:21]} 33. Nf7 {[%emt 0:00:16]} Rd3 {[%emt 0:00:12]} 34. Ng5+ {[%emt 0:00:02]} Kh6 {[%emt 0:00:08]} 35. Bc4 {[%emt 0:00:12]} Rd4 {[%emt 0:00:10]} 36. Rc7 {[%emt 0:00:03]} Rd1+ {[%emt 0:00:15]} 37. Kh2 {[%emt 0:00:02]} Rd2 {[%emt 0:00:10]} 38. f3 {[%emt 0:00:11]} Rd4 {[%emt 0:00:04]} 39. a5 {[%emt 0:00:03]} bxa5 {[%emt 0:00:01]} 40. bxa5 {[%emt 0:00:01]} Rd1 {[%emt 0:00:31]} 41. a6 {[%emt 0:00:01]} Ra1 {[%emt 0:00:02]} 42. a7 {[%emt 0:00:01]} Ra3 {[%emt 0:00:03]} 43. Bd5 {[%emt 0:00:02]} 1-0

[Event "Wuerttemberg Rapid Teams 2024"]
[Site "B?blingen, Germany"]
[Date "2024.04.13"]
[Round "7.28"]
[White "Brettschneider, Karl"]
[Black "Retzlaff, Nick"]
[Result "1/2-1/2"]
[ECO "A29"]
[WhiteElo "1965"]
[BlackElo "1707"]
[Annotator "TA"]
[PlyCount "89"]
[EventDate "2024.04.13"]
[EventType "team-tourn"]
[SourceTitle "playchess.com"]
[Source "ChessBase"]
[SourceQuality "1"]
[TimeControl "900+5"]

{[%evp 15,89,14,12,23,51,22,40,4,102,94,113,68,137,51,93,0,0,0,0,1,4,4,14,16,14,10,10,10,10,10,13,10,11,11,11,11,11,11,11,8,12,6,6,6,6,6,6,0,6,0,0,0,0,0,6,0,6,0,6,0,0,0,0,0,8,8,8,8,8,8,8,8,8,8,8,8]} 1. c4 {[%emt 0:00:02]} e5 {[%emt 0:00:02]} 2. Nc3 {[%emt 0:00:03]} Nf6 {[%emt 0:00:04]} 3. g3 {[%emt 0:00:03]} d5 {[%emt 0:00:03]} 4. cxd5 {[%emt 0:00:02]} Nxd5 {[%emt 0:00:02]} 5. Bg2 {[%emt 0:00:03]} Nxc3 {[%emt 0:00:02]} 6. bxc3 {[%emt 0:00:03]} Bd6 {[%emt 0:00:07]} 7. Nf3 {[%emt 0:00:11]} Nc6 {[%emt 0:00:13]} 8. O-O {[%emt 0:00:18]} O-O {[%emt 0:00:10]} 9. d4 {[%emt 0:00:15]} exd4 {[%emt 0:00:20]} (9... Re8 {simplifies} 10. Rb1 h6 11. dxe5 Nxe5 12. Nxe5 Bxe5 13. Qxd8 Rxd8 14. Be3 c6) 10. Nxd4 {[%emt 0:00:16]} Nxd4 {[%emt 0:00:04]} 11. Qxd4 {[%emt 0:00:46] White is slightly better.} Be6 {[%emt 0:00:16]} (11... Re8 $11 {remains equal.}) 12. Bxb7 $16 {[%emt 0:00:50] White is more active.} Rb8 {[%emt 0:00:04]} 13. Bg2 {[%emt 0:00:23]} Re8 {[%emt 0:00:19]} (13... c5 $14 14. Qa4 Qc7) 14. Rd1 {[%emt 0:03:02]} (14. Qxa7 $16 Qf6 15. Be3) 14... Be5 {[%emt 0:01:10] [#]} 15. Qxd8 {[%emt 0:00:23]} (15. Qa4 $1 $16 Qe7 16. Rd3 (16. Qxa7 Bxc3 17. Ba3 Qf6 $16)) 15... Rexd8 $11 {[%emt 0:00:09] The position is equal.} 16. Rxd8+ {[%emt 0:01:10]} Rxd8 {[%emt 0:00:34]} 17. Be3 {[%emt 0:00:55]} Bxc3 {[%emt 0:00:12]} 18. Rc1 {[%emt 0:00:31]} Bb2 {[%emt 0:01:12]} 19. Rb1 {[%emt 0:00:40]} (19. Rxc7 $2 {is the wrong capture.} Rd1+ 20. Bf1 Bh3 $19 (20... Bxa2 21. Rc8+) (20... Bxa2 21. Rc8+)) 19... Be5 {[%emt 0:00:18]} 20. f4 {[%emt 0:01:16]} Bxa2 {[%emt 0:00:50]} 21. Rc1 {[%emt 0:00:50]} Bd6 {[%emt 0:00:12]} 22. Bxa7 {[%emt 0:00:12]} Be6 {[%emt 0:01:02]} 23. Bc5 {[%emt 0:00:24]} f6 {[%emt 0:01:03]} 24. Bxd6 {[%emt 0:00:29]} cxd6 {[%emt 0:00:06][%mdl 4096] Endgame. KRB-KRB} 25. Rc7 {[%emt 0:00:04]} Rd7 {[%emt 0:00:08]} 26. Rxd7 {[%emt 0:01:11]} Bxd7 {[%emt 0:00:02] KB-KB} 27. Bd5+ {[%emt 0:00:08]} Kf8 {[%emt 0:00:02]} 28. e4 {[%emt 0:00:01]} Ke7 {[%emt 0:00:00]} 29. Kf2 {[%emt 0:00:02]} Be6 {[%emt 0:00:01]} 30. Bc6 {[%emt 0:00:07]} f5 {[%emt 0:00:08]} 31. Ke3 {[%emt 0:00:09]} fxe4 {[%emt 0:00:25]} 32. Kxe4 {[%emt 0:00:03]} Kf6 {[%emt 0:00:07]} 33. Kd4 {[%emt 0:00:22]} g6 {[%emt 0:00:19]} 34. Bf3 {[%emt 0:00:09]} h5 {[%emt 0:00:08]} 35. Be4 {[%emt 0:00:26]} Kf7 {[%emt 0:00:53]} 36. Bd5 {[%emt 0:00:08]} Kf6 {[%emt 0:00:01]} 37. Bxe6 {[%emt 0:00:07]} Kxe6 {[%emt 0:00:01] K3P-K3P} 38. h3 {[%emt 0:00:10]} d5 {[%emt 0:00:08]} 39. g4 {[%emt 0:00:17]} Kd6 {[%emt 0:01:34]} 40. f5 {[%emt 0:00:40]} gxf5 {[%emt 0:00:11]} 41. gxf5 {[%emt 0:00:01] h4 would kill now.} h4 {[%emt 0:00:01]} 42. f6 {[%emt 0:00:26]} Ke6 {[%emt 0:00:01] [#]} 43. f7 $1 {[%emt 0:00:02]} Kxf7 {[%emt 0:00:03] ( -> ...Ke6)} (43... Ke7 44. Kxd5) 44. Kxd5 {[%emt 0:00:01]} Kg6 {[%emt 0:00:02]} 45. Ke5 {[%emt 0:00:12] Weighted Error Value: White=0.13 (very precise) /Black=0.13 (very precise) .  Mistake:       	White=2     	Black=2      Inaccurate:     	White=3     	Black=2      OK:         	White=11    	Black=16     Best:        	White=2     	Black=2} 1/2-1/2

[Event "Wuerttemberg Rapid Teams 2024"]
[Site "B?blingen, Germany"]
[Date "2024.04.13"]
[Round "7.29"]
[White "Strathmann, Sacha"]
[Black "Schaefer, Daniel"]
[Result "1-0"]
[ECO "C78"]
[WhiteElo "2125"]
[BlackElo "1952"]
[Annotator "RC"]
[PlyCount "119"]
[EventDate "2024.04.13"]
[EventType "team-tourn"]
[SourceTitle "playchess.com"]
[Source "ChessBase"]
[SourceQuality "1"]
[TimeControl "900+5"]

1. e4 {[%emt 0:00:02]} e5 {[%emt 0:00:01]} 2. Nf3 {[%emt 0:00:01]} Nc6 {[%emt 0:00:01]} 3. Bb5 {[%emt 0:00:01]} a6 {[%emt 0:00:01]} 4. Ba4 {[%emt 0:00:02]} Nf6 {[%emt 0:00:01]} 5. d3 {[%emt 0:00:04]} b5 {[%emt 0:00:05]} 6. Bb3 {[%emt 0:00:01]} Bc5 {[%emt 0:00:00]} 7. O-O {[%emt 0:00:07]} d6 {[%emt 0:00:05]} 8. h3 {[%emt 0:00:07]} Na5 {[%emt 0:00:17]} 9. c3 {[%emt 0:00:03]} Nxb3 {[%emt 0:00:03]} 10. axb3 {[%emt 0:00:02]} h6 {[%emt 0:01:06]} 11. b4 {[%emt 0:00:03]} Bb6 {[%emt 0:00:11]} 12. Na3 {[%emt 0:00:02]} O-O {[%emt 0:01:00]} 13. Nc2 {[%emt 0:01:29]} Bb7 {[%emt 0:01:10]} 14. Be3 {[%emt 0:00:04]} Bxe3 {[%emt 0:00:53]} 15. Nxe3 {[%emt 0:00:09]} Re8 {[%emt 0:00:03]} 16. Nd2 {[%emt 0:02:26]} c5 {[%emt 0:01:29]} 17. Qb3 {[%emt 0:02:10]} Qb6 {[%emt 0:02:16]} 18. bxc5 {[%emt 0:00:20]} Qxc5 {[%emt 0:01:35]} 19. c4 {[%emt 0:00:42]} Rab8 {[%emt 0:02:21]} 20. Qc2 {[%emt 0:02:17]} bxc4 {[%emt 0:00:43]} 21. Ndxc4 {[%emt 0:01:12]} Rec8 {[%emt 0:00:32]} 22. Qd2 {[%emt 0:00:00]} d5 {[%emt 0:01:17]} 23. exd5 {[%emt 0:00:00]} Nxd5 {[%emt 0:00:29]} 24. Ra5 {[%emt 0:00:00]} Qd4 {[%emt 0:00:07]} 25. Nf5 {[%emt 0:00:24]} Qf4 {[%emt 0:00:13]} 26. Qxf4 {[%emt 0:00:31]} Nxf4 {[%emt 0:00:06]} 27. Ne7+ {[%emt 0:00:03]} Kf8 {[%emt 0:00:14]} 28. Nxc8 {[%emt 0:00:03]} Rxc8 {[%emt 0:00:04]} 29. Nd6 {[%emt 0:00:14]} Rc7 {[%emt 0:00:18]} 30. Nxb7 {[%emt 0:00:05]} Rxb7 {[%emt 0:00:01]} 31. Rxe5 {[%emt 0:00:15]} Nxd3 {[%emt 0:00:03]} 32. Ra5 {[%emt 0:00:07]} Rb6 {[%emt 0:00:16]} 33. b3 {[%emt 0:00:10]} Rxb3 {[%emt 0:00:13]} 34. Rxa6 {[%emt 0:00:02]} Rb2 {[%emt 0:00:07]} 35. Rd6 {[%emt 0:00:08]} Nf4 {[%emt 0:00:09]} 36. Rfd1 {[%emt 0:00:23]} Ne6 {[%emt 0:00:12]} 37. Rd7 {[%emt 0:00:05]} Rc2 {[%emt 0:00:10]} 38. Ra7 {[%emt 0:00:07]} Rc7 {[%emt 0:00:05]} 39. Rxc7 {[%emt 0:00:21]} Nxc7 {[%emt 0:00:01]} 40. Rd7 {[%emt 0:00:03]} Ne6 {[%emt 0:00:02]} 41. Ra7 {[%emt 0:00:04]} g6 {[%emt 0:00:01]} 42. g3 {[%emt 0:00:02]} h5 {[%emt 0:00:01]} 43. f4 {[%emt 0:00:02]} Kg7 {[%emt 0:00:02]} 44. Kg2 {[%emt 0:00:01]} h4 {[%emt 0:00:07]} 45. Ra5 {[%emt 0:01:33]} hxg3 {[%emt 0:00:05]} 46. Kxg3 {[%emt 0:00:02]} Kf6 {[%emt 0:00:04]} 47. h4 {[%emt 0:00:02]} Nd4 {[%emt 0:00:13]} 48. Kg4 {[%emt 0:00:03]} Ne6 {[%emt 0:00:10]} 49. h5 {[%emt 0:00:28]} gxh5+ {[%emt 0:00:01]} 50. Rxh5 {[%emt 0:00:02]} Ke7 {[%emt 0:00:17]} 51. Ra5 {[%emt 0:00:12]} Kf6 {[%emt 0:00:02]} 52. Ra6 {[%emt 0:00:08]} Kg7 {[%emt 0:00:10]} 53. f5 {[%emt 0:00:06]} Nf8 {[%emt 0:00:05]} 54. Kf4 {[%emt 0:00:17]} Nd7 {[%emt 0:00:03]} 55. Rd6 {[%emt 0:00:09]} Nf6 {[%emt 0:00:04]} 56. Rd1 {[%emt 0:00:44]} Ne8 {[%emt 0:00:09]} 57. Ke5 {[%emt 0:00:03]} Kf8 {[%emt 0:00:03]} 58. f6 {[%emt 0:00:06]} Nc7 {[%emt 0:00:09]} 59. Rd8+ {[%emt 0:00:07]} Ne8 {[%emt 0:00:01]} 60. Ra8 {[%emt 0:00:02]} 1-0

[Event "Wuerttemberg Rapid Teams 2024"]
[Site "B?blingen, Germany"]
[Date "2024.04.13"]
[Round "7.30"]
[White "Lahouel, Kim-Luca"]
[Black "Baur, Frank"]
[Result "0-1"]
[ECO "B22"]
[WhiteElo "1970"]
[BlackElo "2050"]
[Annotator "RC"]
[PlyCount "70"]
[EventDate "2024.04.13"]
[EventType "team-tourn"]
[SourceTitle "playchess.com"]
[Source "ChessBase"]
[SourceQuality "1"]
[TimeControl "900+5"]

1. e4 {[%emt 0:00:02]} c5 {[%emt 0:00:11]} 2. c3 {[%emt 0:00:03]} Nf6 {[%emt 0:00:18]} 3. e5 {[%emt 0:00:02]} Nd5 {[%emt 0:00:03]} 4. d4 {[%emt 0:00:02]} cxd4 {[%emt 0:00:06]} 5. Nf3 {[%emt 0:00:03]} Nc6 {[%emt 0:01:19]} 6. cxd4 {[%emt 0:00:05]} d6 {[%emt 0:00:08]} 7. Bc4 {[%emt 0:00:17]} Nb6 {[%emt 0:00:07]} 8. Bb5 {[%emt 0:01:02]} Bd7 {[%emt 0:00:24]} 9. Nc3 {[%emt 0:00:16]} e6 {[%emt 0:02:06]} 10. O-O {[%emt 0:01:40]} Be7 {[%emt 0:00:46]} 11. Qe2 {[%emt 0:00:37]} a6 {[%emt 0:01:08]} 12. Bd3 {[%emt 0:00:22]} dxe5 {[%emt 0:00:22]} 13. dxe5 {[%emt 0:00:10]} Nb4 {[%emt 0:01:00]} 14. Bb1 {[%emt 0:00:02]} Qc7 {[%emt 0:01:06]} 15. Nd4 {[%emt 0:04:32]} N6d5 {[%emt 0:03:27]} 16. Bd2 {[%emt 0:00:22]} Bc5 {[%emt 0:01:02]} 17. Nf3 {[%emt 0:01:06]} Nxc3 {[%emt 0:00:07]} 18. bxc3 {[%emt 0:00:02]} Bb5 {[%emt 0:00:30]} 19. c4 {[%emt 0:00:01]} Bxc4 {[%emt 0:00:26]} 20. Qe4 {[%emt 0:00:22]} Bxf1 {[%emt 0:00:57]} 21. Bxb4 {[%emt 0:00:26]} Bxb4 {[%emt 0:00:07]} 22. Qxb4 {[%emt 0:00:02]} Bb5 {[%emt 0:00:31]} 23. Be4 {[%emt 0:00:17]} Rc8 {[%emt 0:00:21]} 24. h3 {[%emt 0:00:53]} Qe7 {[%emt 0:00:05]} 25. Qd2 {[%emt 0:00:21]} O-O {[%emt 0:00:03]} 26. Qf4 {[%emt 0:00:09]} f5 {[%emt 0:00:12]} 27. exf6 {[%emt 0:00:10]} Qxf6 {[%emt 0:00:03]} 28. Qxf6 {[%emt 0:00:07]} gxf6 {[%emt 0:00:05]} 29. Nd4 {[%emt 0:00:11]} Kf7 {[%emt 0:00:18]} 30. Bxb7 {[%emt 0:00:04]} Rc7 {[%emt 0:00:03]} 31. Nxb5 {[%emt 0:00:10]} axb5 {[%emt 0:00:02]} 32. Ba6 {[%emt 0:00:20]} Rc5 {[%emt 0:00:03]} 33. Rb1 {[%emt 0:00:03]} Rb8 {[%emt 0:00:07]} 34. a3 {[%emt 0:00:18]} Rb6 {[%emt 0:00:03]} 35. a4 {[%emt 0:00:06]} Rxa6 {[%emt 0:00:03]} 0-1

[Event "Wuerttemberg Rapid Teams 2024"]
[Site "B?blingen, Germany"]
[Date "2024.04.13"]
[Round "7.31"]
[White "Schmid, Tim"]
[Black "Mikeler, Marcel"]
[Result "1/2-1/2"]
[ECO "C95"]
[WhiteElo "1765"]
[BlackElo "1945"]
[Annotator "TA"]
[PlyCount "119"]
[EventDate "2024.04.13"]
[EventType "team-tourn"]
[SourceTitle "playchess.com"]
[Source "ChessBase"]
[SourceQuality "1"]
[TimeControl "900+5"]

{[%evp 29,119,13,12,-14,46,47,47,47,41,41,60,53,77,53,70,75,110,82,131,48,51,20,46,47,56,27,33,18,72,74,87,57,67,36,80,30,25,26,64,69,62,53,57,36,52,14,39,27,46,41,41,0,50,7,41,0,61,52,100,27,69,0,79,66,77,0,31,0,106,0,61,62,76,83,125,122,122,122,139,124,723,131,127,101,691,0,51,77,102,101,141,0]} 1. e4 {[%emt 0:00:02]} e5 {[%emt 0:00:03]} 2. Nf3 {[%emt 0:00:01]} Nc6 {[%emt 0:00:01]} 3. Bb5 {[%emt 0:00:01]} a6 {[%emt 0:00:01]} 4. Ba4 {[%emt 0:00:02]} Nf6 {[%emt 0:00:01]} 5. O-O {[%emt 0:00:02]} b5 {[%emt 0:00:01]} 6. Bb3 {[%emt 0:00:01]} d6 {[%emt 0:00:01]} 7. Re1 {[%emt 0:00:05]} Be7 {[%emt 0:00:01]} 8. c3 {[%emt 0:00:05]} O-O {[%emt 0:00:02]} 9. h3 {[%emt 0:00:02]} Nb8 {[%emt 0:00:02]} 10. d4 {[%emt 0:00:05]} Nbd7 {[%emt 0:00:01]} 11. Nbd2 {[%emt 0:00:12]} Bb7 {[%emt 0:00:07]} 12. Bc2 {[%emt 0:00:02]} Re8 {[%emt 0:00:01]} 13. Nf1 {[%emt 0:00:12]} Bf8 {[%emt 0:00:02]} 14. Ng3 {[%emt 0:00:02]} g6 {[%emt 0:00:01]} 15. b3 {[%emt 0:00:10]} Bg7 {[%emt 0:00:21]} 16. Rb1 {[%emt 0:00:32]} c5 {[%emt 0:00:14]} (16... d5 $11) 17. d5 $14 {[%emt 0:00:12]} Qc7 {[%emt 0:00:18]} 18. c4 {[%emt 0:00:52] White is slightly better.} Nb6 {[%emt 0:00:45]} 19. Bd3 {[%emt 0:00:19]} Qd7 {[%emt 0:01:55]} 20. Bd2 {[%emt 0:01:45]} Rab8 {[%emt 0:00:29]} 21. Qc1 {[%emt 0:00:07]} Bc8 {[%emt 0:02:08]} 22. Bh6 {[%emt 0:00:08]} Bh8 {[%emt 0:00:01]} 23. Qg5 {[%emt 0:02:30]} Na8 {[%emt 0:00:26]} (23... bxc4 $142 24. bxc4 Qd8) 24. h4 {[%emt 0:01:15] White is much more active.} (24. Nh4 $16) 24... Qd8 {[%emt 0:00:09]} 25. Kf1 {[%emt 0:01:51]} (25. Nh2 {feels hotter.} Bg7 26. h5 Nc7 27. Bxg7 Kxg7 28. Be2) 25... Ng4 {[%emt 0:00:30]} (25... Bg7 {is more complex.} 26. Bxg7 Kxg7 27. b4 cxb4 28. Rxb4 Nc7) 26. Qxd8 {[%emt 0:00:58]} Rxd8 {[%emt 0:00:01]} 27. Bg5 {[%emt 0:00:12]} Re8 {[%emt 0:00:01]} 28. h5 {[%emt 0:00:36]} h6 {[%emt 0:00:20]} (28... Bd7 $11) 29. Bd2 $16 {[%emt 0:00:10]} Bd7 {[%emt 0:00:23]} 30. Kg1 {[%emt 0:01:29]} Bf6 {[%emt 0:01:15]} 31. Nh2 {[%emt 0:00:29]} Kg7 {[%emt 0:02:55]} 32. b4 {[%emt 0:00:51]} (32. hxg6 $16 fxg6 33. Nxg4 Bxg4 34. a4) 32... Nxh2 $11 {[%emt 0:00:39]} 33. Kxh2 {[%emt 0:00:15]} (33. bxc5 {looks sharper.} Ng4 34. c6 Bc8 35. a4) 33... Be7 {[%emt 0:02:07]} 34. hxg6 {[%emt 0:00:59]} fxg6 {[%emt 0:00:04]} 35. bxc5 {[%emt 0:00:13]} dxc5 {[%emt 0:00:04]} 36. Rh1 {[%emt 0:00:06]} Bd6 {[%emt 0:00:28]} 37. Kg1 {[%emt 0:00:16]} Rh8 {[%emt 0:00:02]} 38. Bc3 {[%emt 0:00:30]} b4 {[%emt 0:00:01]} 39. Ba1 {[%emt 0:00:03]} Rhf8 {[%emt 0:00:09]} 40. Bb2 {[%emt 0:00:10]} a5 {[%emt 0:00:02]} (40... Nb6 $11) 41. Bc1 {[%emt 0:00:01]} Rh8 {[%emt 0:00:01]} 42. Bb2 {[%emt 0:00:05]} Rbf8 {[%emt 0:00:18]} (42... Rhf8 $11) 43. Rf1 $14 {[%emt 0:00:12]} Rf4 {[%emt 0:00:28]} (43... Re8 $14) 44. Bc1 {[%emt 0:00:08]} (44. Ne2 $16 Rf6 45. f4) 44... Rf7 {[%emt 0:00:03]} 45. Ne2 {[%emt 0:00:14]} ({Better is} 45. f4 $14) 45... g5 {[%emt 0:00:03]} (45... Nb6 $11) 46. f3 {[%emt 0:00:07]} a4 {[%emt 0:00:01]} 47. Bb2 {[%emt 0:00:06]} (47. Ng3 $16) 47... Kg6 {[%emt 0:00:04]} 48. Bc2 {[%emt 0:00:12][%cal Of3f4]} Nc7 {[%emt 0:00:08]} (48... Nb6 $11 {keeps the balance.} 49. Bd3 a3) 49. Bd1 {[%emt 0:00:03]} (49. f4 $16 Rhf8 50. f5+ (50. Bxe5 $2 {perishes.} Bxe5 51. Rf3 gxf4 $19) 50... Kg7 51. Ng3) 49... Rb8 {[%emt 0:00:31]} (49... Na8 $11) 50. g4 {[%emt 0:00:02]} Ne8 {[%emt 0:00:22]} 51. Ng3 {[%emt 0:00:01]} Ng7 {[%emt 0:00:03]} 52. Nf5 {[%emt 0:00:01]} Nxf5 {[%emt 0:00:03]} 53. exf5+ {[%emt 0:00:09]} Kg7 {[%emt 0:00:08]} 54. Re1 {[%emt 0:00:02]} Re7 {[%emt 0:00:13][%mdl 8192] [#]} (54... Rff8 $16) 55. Rh5 $2 {[%emt 0:00:07]} (55. f6+ $18 {is the precise move to win.} Kxf6 56. Rxh6+ Kf7 57. Rxd6) 55... Be8 {[%emt 0:00:04]} 56. Rh2 {[%emt 0:00:01][%cal Od1a4]} (56. f6+ Kxf6 57. Rxh6+ Bg6) 56... Bd7 $2 {[%emt 0:00:17][%mdl 8192]} (56... a3 $16 57. Bc1 Bf7) 57. Rhe2 $2 {[%emt 0:00:01]} ({White has to play} 57. f6+ $18 Kxf6 58. Rxh6+ Kf7 59. Rxd6) 57... Rbe8 {[%emt 0:00:01]} ({Black should play} 57... Kf6 $11) 58. Bc2 {[%emt 0:00:06]} a3 {[%emt 0:00:04] [#]} 59. Ba1 {[%emt 0:00:03]} Bc8 {[%emt 0:00:03]} 60. Bb3 {[%emt 0:00:03] Weighted Error Value: White=0.44/Black=0.45.  Loses game:     	---       	Black=2      Missed win:     	White=2     	---        Mistake:       	White=7     	Black=10     Inaccurate:     	White=9     	Black=9      OK:         	White=9     	Black=8      Best:        	White=2     	Black=1} (60. Rh2 $16 Rh8 61. Kf2) 1/2-1/2

[Event "Wuerttemberg Rapid Teams 2024"]
[Site "B?blingen, Germany"]
[Date "2024.04.13"]
[Round "7.33"]
[White "Kulm, Justin"]
[Black "Koeller, Horst"]
[Result "0-1"]
[ECO "D00"]
[WhiteElo "1963"]
[BlackElo "1831"]
[Annotator "TA"]
[PlyCount "72"]
[EventDate "2024.04.13"]
[EventType "team-tourn"]
[SourceTitle "playchess.com"]
[Source "ChessBase"]
[SourceQuality "1"]
[TimeControl "900+5"]

{[%evp 9,72,-69,-59,-59,-58,-60,-66,-62,-60,-61,-35,-116,-88,-122,-84,-73,-115,-89,-44,-122,-72,-87,-88,-124,-95,-76,-112,-82,-66,-54,-32,-94,-65,-104,-132,-126,-56,-78,-94,-78,-87,-89,-60,-152,-52,-491,-362,-466,-308,-310,-301,-431,-383,-608,-609,-1171,-1153,-1285,-1167,-1118,-1118,-5236,-4886,-29978,-29978]} 1. d4 {[%emt 0:00:01]} Nf6 {[%emt 0:00:05]} 2. Nc3 {[%emt 0:00:02]} d5 {[%emt 0:00:03]} 3. Bf4 {[%emt 0:00:05]} a6 {[%emt 0:00:02]} 4. e3 {[%emt 0:00:06]} e6 {[%emt 0:00:57]} 5. f3 {[%emt 0:00:14]} c5 {[%emt 0:00:48]} 6. Nge2 {[%emt 0:00:13]} Nc6 {[%emt 0:00:06]} 7. g4 {[%emt 0:00:18]} b5 {[%emt 0:00:39]} 8. Bg2 {[%emt 0:00:15] Black is slightly better.} cxd4 {[%emt 0:01:06]} 9. exd4 {[%emt 0:00:17]} Bd6 {[%emt 0:00:33]} 10. Be3 {[%emt 0:00:28]} (10. a3 $15) 10... Qc7 {[%emt 0:00:37][%cal Ob5b4]} 11. h4 {[%emt 0:01:40][%cal Bh2h4,Bh4h5][%mdl 32]} Bg3+ {[%emt 0:01:04]} 12. Bf2 {[%emt 0:00:42]} Bxf2+ {[%emt 0:00:09]} 13. Kxf2 {[%emt 0:00:04]} Qb6 {[%emt 0:00:25]} 14. Kg3 {[%emt 0:01:19]} (14. Qd2 $15) 14... Bb7 {[%emt 0:01:06]} (14... h5 $142 15. Qd2 O-O 16. gxh5 Nxh5+ 17. Kf2 b4) 15. h5 {[%emt 0:00:12]} h6 {[%emt 0:00:28]} 16. Qg1 {[%emt 0:00:43]} O-O-O {[%emt 0:00:28]} 17. a4 {[%emt 0:01:08]} b4 {[%emt 0:00:05]} 18. Nd1 {[%emt 0:00:07]} g6 {[%emt 0:00:24] Black is much more active.} 19. hxg6 {[%emt 0:01:15]} fxg6 {[%emt 0:00:01]} 20. c3 {[%emt 0:00:18]} (20. Qe3 $15) 20... g5 $17 {[%emt 0:01:41]} 21. Qe3 {[%emt 0:01:16]} Rde8 {[%emt 0:00:00]} 22. cxb4 {[%emt 0:00:50][%cal Ob4b5] [#]} Qxb4 {[%emt 0:00:00]} (22... e5 $1 $17 23. Qd2 (23. dxe5 $2 d4 $17) 23... Nxd4 (23... exd4 24. b5 $11) 24. Nxd4 exd4) 23. Qc3 {[%emt 0:00:21]} Qd6+ {[%emt 0:00:00]} 24. Kf2 {[%emt 0:00:07]} Ref8 {[%emt 0:00:00] Strongly threatening ...Ne4+.} 25. Ke1 {[%emt 0:00:22]} Kb8 {[%emt 0:00:00]} 26. Rb1 {[%emt 0:00:46]} ({White should try} 26. Ra3 $15) 26... e5 {[%emt 0:00:00]} ({Better is} 26... Nb4 $17 {Hoping for ...a5.} 27. Qd2 a5) 27. Kd2 $2 {[%emt 0:01:22][%mdl 8192] [#] Now White is beyond hope.} ({White has to play} 27. Ne3 $15) 27... Rc8 {[%emt 0:00:00]} 28. Qc5 {[%emt 0:01:19]} Qxc5 {[%emt 0:00:06]} 29. dxc5 {[%emt 0:00:03]} Nb4 {[%emt 0:00:05]} 30. Ndc3 {[%emt 0:00:32]} (30. Ne3 {might work better.}) 30... Rxc5 {[%emt 0:00:09] And now ...d4 would win.} 31. Ng3 {[%emt 0:00:13]} (31. Rbc1 $142) 31... d4 $19 {[%emt 0:00:09]} 32. f4 {[%emt 0:00:18]} Bxg2 {[%emt 0:00:43]} 33. Rh2 {[%emt 0:00:12]} gxf4 {[%emt 0:00:19]} 34. Rxg2 {[%emt 0:00:08]} fxg3 {[%emt 0:00:02]} 35. Rxg3 {[%emt 0:00:04]} dxc3+ {[%emt 0:00:06]} 36. bxc3 {[%emt 0:00:01]} Ne4+ {[%emt 0:00:00] Weighted Error Value: White=1.10/Black=0.37.  Loses game:     	White=1     	---        Mistake:       	White=6     	Black=3      Inaccurate:     	White=3     	Black=5      OK:         	White=5     	Black=9      Best:        	White=3     	Black=1} 0-1